fUST/lending_fUST_20240921
["ID","MTS","AMOUNT","RATE_DAILY","PERIOD"]
[338702624,1726887047673,-8465.53842792,0.0001446,2]
[338702625,1726887047682,-8465.53842792,0.00014461,2]
[338702626,1726887047691,-500.0,0.00014467,2]
[338702627,1726887047699,-974.97,0.00014467,2]
[338702628,1726887047708,-500.0,0.00014467,2]
[338702629,1726887047718,-500.0,0.00014467,2]
[338702630,1726887047726,-776.09,0.00014467,2]
[338702631,1726887047735,-500.0,0.00014467,2]
[338702632,1726887047744,-18379.14,0.00014467,2]
[338702633,1726887047754,-3136.62,0.00014467,2]
[338702634,1726887047763,-500.0,0.00014467,2]
[338702635,1726887047772,-193.018,0.00014469,2]
[338702636,1726887047782,-151.0,0.00014469,2]
[338702637,1726887047791,-151.0,0.00014469,2]
[338702638,1726887047803,-151.0,0.00014469,2]
[338702639,1726887047812,-151.0,0.00014469,2]
[338702640,1726887047824,-296.734072,0.00014469,2]
[338702641,1726887047835,-296.734072,0.00014469,2]
[338702642,1726887047845,-151.0,0.00014469,2]
[338702643,1726887047855,-224.372915,0.00014469,2]
[338702644,1726887047863,-151.0,0.00014469,2]
[338702645,1726887047873,-612.063777,0.00014469,2]
[338702646,1726887047882,-224.372915,0.00014469,2]
[338702647,1726887047891,-612.063777,0.00014469,2]
[338702648,1726887047902,-151.0,0.00014469,2]
[338702649,1726887047913,-385.370239,0.00014469,2]
[338702650,1726887047926,-385.370239,0.00014469,2]
[338702651,1726887047936,-151.0,0.00014469,2]
[338702652,1726887047947,-500.0,0.00014469,2]
[338702653,1726887047956,-500.0,0.00014469,2]
[338702654,1726887047965,-379.83735,0.00014469,2]
[338702655,1726887047974,-151.0,0.00014469,2]
[338702656,1726887047983,-379.83735,0.00014469,2]
[338702657,1726887047992,-845.09647,0.00014469,2]
[338702658,1726887048001,-845.09647,0.00014469,2]
[338702659,1726887048010,-502.79481521,0.0001447,2]
[338702660,1726887048020,-500.0,0.0001447,2]
[338702661,1726887048029,-500.0,0.0001447,2]
[338702662,1726887048040,-500.0,0.0001447,2]
[338702663,1726887048051,-500.0,0.0001447,2]
[338702664,1726887048060,-649.91,0.0001447,2]
[338702665,1726887048071,-500.0,0.0001447,2]
[338702666,1726887048080,-214.06176821,0.0001447,2]
[338702667,1726887048089,-500.0,0.0001447,2]
[338702668,1726887048098,-500.0,0.0001447,2]
[338702669,1726887048107,-500.0,0.0001447,2]
[338702670,1726887048117,-496.33150023,0.0001447,2]
[338702671,1726887048127,-804.13,0.0001447,2]
[338702672,1726887048137,-506.48,0.0001447,2]
[338702673,1726887048146,-449.55453048,0.0001447,2]
[338702674,1726887048155,-500.0,0.0001447,2]
[338702675,1726887048164,-500.0,0.0001447,2]
[338702676,1726887048173,-500.0,0.0001447,2]
[338702677,1726887048183,-500.0,0.0001447,2]
[338702678,1726887048192,-500.0,0.0001447,2]
[338702679,1726887048201,-500.0,0.0001447,2]
[338702680,1726887048210,-500.0,0.0001447,2]
[338702681,1726887048219,-500.0,0.0001447,2]
[338702682,1726887048230,-500.0,0.0001447,2]
[338702683,1726887048241,-598.63837861,0.0001447,2]
[338702684,1726887048250,-500.0,0.0001447,2]
[338702685,1726887048260,-500.0,0.0001447,2]
[338702686,1726887048269,-500.0,0.0001447,2]
[338702687,1726887048278,-500.0,0.0001447,2]
[338702688,1726887048288,-500.0,0.0001447,2]
[338702689,1726887048297,-500.0,0.0001447,2]
[338702690,1726887048307,-500.0,0.0001447,2]
[338702691,1726887048317,-661.91,0.0001447,2]
[338702692,1726887048326,-304.03323216,0.0001447,2]
[338702693,1726887048336,-500.0,0.0001447,2]
[338702694,1726887048346,-352.328839,0.0001447,2]
[338702695,1726887048355,-500.0,0.0001447,2]
[338702696,1726887048365,-352.328839,0.0001447,2]
[338702697,1726887048374,-500.0,0.0001447,2]
[338702698,1726887048383,-500.0,0.0001447,2]
[338702699,1726887048393,-500.0,0.0001447,2]
[338702700,1726887048402,-500.0,0.0001447,2]
[338702701,1726887048412,-500.0,0.0001447,2]
[338702702,1726887048421,-598.95342802,0.0001447,2]
[338702703,1726887048431,-151.0,0.0001447,2]
[338702704,1726887048440,-500.0,0.0001447,2]
[338702705,1726887048450,-500.0,0.0001447,2]
[338702706,1726887048459,-500.0,0.0001447,2]
[338702707,1726887048469,-500.0,0.0001447,2]
[338702708,1726887048478,-383.04976252,0.0001447,2]
[338702709,1726887048487,-1240.54,0.0001447,2]
[338702710,1726887048500,-500.0,0.0001447,2]
[338702711,1726887048510,-500.0,0.0001447,2]
[338702712,1726887048520,-500.0,0.0001447,2]
[338702713,1726887048530,-151.0,0.00014471,2]
[338702714,1726887048539,-151.0,0.00014471,2]
[338702715,1726887048549,-151.0,0.00014471,2]
[338702716,1726887048559,-296.734072,0.00014471,2]
[338702717,1726887048568,-296.734072,0.00014471,2]
[338702718,1726887048578,-224.372915,0.00014471,2]
[338702719,1726887048587,-612.063777,0.00014471,2]
[338702720,1726887048596,-224.372915,0.00014471,2]
[338702721,1726887048605,-612.063777,0.00014471,2]
[338702722,1726887048615,-352.328839,0.00014471,2]
[338702723,1726887048624,-352.328839,0.00014471,2]
[338702724,1726887048633,-151.0,0.00014471,2]
[338702725,1726887048642,-151.0,0.00014471,2]
[338702726,1726887048651,-249.66441376,0.00014473,2]
[338702727,1726887048660,-500.0,0.00014473,2]
[338702728,1726887048669,-500.0,0.00014473,2]
[338702729,1726887048678,-176.2442662,0.00014473,2]
[338702730,1726887048688,-500.0,0.00014473,2]
[338702731,1726887048697,-500.0,0.00014473,2]
[338702732,1726887048706,-500.0,0.00014473,2]
[338702733,1726887048715,-333.56324192,0.00014473,2]
[338702734,1726887048725,-500.0,0.00014473,2]
[338702735,1726887048734,-229.550359,0.00014473,2]
[338702736,1726887048743,-229.550359,0.00014473,2]
[338702737,1726887048753,-151.0,0.00014473,2]
[338702738,1726887048762,-151.0,0.00014473,2]
[338702739,1726887048773,-151.0,0.00014473,2]
[338702740,1726887048782,-151.0,0.00014473,2]
[338702741,1726887048791,-151.0,0.00014473,2]
[338702742,1726887048803,-151.0,0.00014473,2]
[338702743,1726887048812,-385.370239,0.00014473,2]
[338702744,1726887048822,-385.370239,0.00014473,2]
[338702745,1726887048832,-928.64,0.00014479,2]
[338702746,1726887048843,-500.0,0.00014479,2]
[338702747,1726887048853,-500.0,0.00014479,2]
[338702748,1726887048863,-500.0,0.00014479,2]
[338702749,1726887048871,-500.0,0.00014479,2]
[338702750,1726887048882,-500.0,0.00014479,2]
[338702751,1726887048891,-500.0,0.00014479,2]
[338702752,1726887048901,-500.0,0.00014479,2]
[338702753,1726887048910,-625.17,0.00014479,2]
[338702754,1726887048919,-500.0,0.00014479,2]
[338702755,1726887048928,-169.15526229,0.00014479,2]
[338702756,1726887048937,-500.0,0.00014479,2]
[338702757,1726887048950,-606.52,0.00014479,2]
[338702758,1726887048960,-500.0,0.00014479,2]
[338702759,1726887048970,-500.0,0.00014479,2]
[338702760,1726887048979,-500.0,0.00014479,2]
[338702761,1726887048989,-500.0,0.00014479,2]
[338702762,1726887048999,-500.0,0.00014479,2]
[338702763,1726887049009,-514.92854123,0.00014479,2]
[338702764,1726887049019,-500.0,0.00014479,2]
[338702765,1726887049028,-500.0,0.00014479,2]
[338702766,1726887049037,-500.0,0.00014479,2]
[338702767,1726887049047,-500.0,0.00014479,2]
[338702768,1726887049056,-500.0,0.00014479,2]
[338702769,1726887049065,-510.40920777,0.00014479,2]
[338702770,1726887049075,-500.0,0.00014479,2]
[338702771,1726887049084,-500.0,0.00014479,2]
[338702772,1726887049093,-500.0,0.00014479,2]
[338702773,1726887049102,-500.0,0.00014479,2]
[338702774,1726887049111,-500.0,0.00014479,2]
[338702775,1726887049121,-500.0,0.00014479,2]
[338702776,1726887049130,-500.0,0.00014479,2]
[338702777,1726887049139,-500.0,0.00014479,2]
[338702778,1726887049149,-361.84,0.00014479,2]
[338702779,1726887049158,-500.0,0.00014479,2]
[338702780,1726887049168,-500.0,0.00014479,2]
[338702781,1726887049177,-500.0,0.00014479,2]
[338702782,1726887049186,-500.0,0.00014479,2]
[338702783,1726887049196,-249.70408648,0.00014479,2]
[338702784,1726887049205,-500.89001931,0.00014479,2]
[338702785,1726887049215,-606.62,0.00014479,2]
[338702786,1726887049224,-365.08,0.00014479,2]
[338702787,1726887049234,-500.0,0.00014479,2]
[338702788,1726887049244,-500.0,0.00014479,2]
[338702789,1726887049253,-500.0,0.00014479,2]
[338702790,1726887049262,-500.0,0.00014479,2]
[338702791,1726887049272,-500.0,0.00014479,2]
[338702792,1726887049281,-500.0,0.00014479,2]
[338702793,1726887049290,-500.0,0.00014479,2]
[338702794,1726887049300,-500.0,0.00014479,2]
[338702795,1726887049310,-500.0,0.00014479,2]
[338702796,1726887049319,-500.0,0.00014479,2]
[338702797,1726887049328,-431.20530052,0.00014479,2]
[338702798,1726887049338,-500.0,0.00014479,2]
[338702799,1726887049348,-500.0,0.00014479,2]
[338702800,1726887049357,-500.0,0.00014479,2]
[338702801,1726887049367,-748.16,0.00014479,2]
[338702802,1726887049376,-500.0,0.00014479,2]
[338702803,1726887049386,-500.0,0.00014479,2]
[338702804,1726887049395,-515.7772724,0.00014479,2]
[338702805,1726887049404,-500.0,0.00014481,2]
[338702806,1726887049414,-500.0,0.00014481,2]
[338702807,1726887049423,-900.47,0.00014481,2]
[338702808,1726887049433,-500.0,0.00014481,2]
[338702809,1726887049442,-500.0,0.00014481,2]
[338702810,1726887049452,-587.33,0.00014481,2]
[338702811,1726887049462,-500.0,0.00014481,2]
[338702812,1726887049471,-500.0,0.00014481,2]
[338702813,1726887049480,-500.0,0.00014481,2]
[338702814,1726887049490,-500.0,0.00014481,2]
[338702815,1726887049499,-500.0,0.00014481,2]
[338702816,1726887049509,-500.0,0.00014481,2]
[338702817,1726887049519,-500.0,0.00014481,2]
[338702818,1726887049528,-500.0,0.00014481,2]
[338702819,1726887049537,-502.09002201,0.00014481,2]
[338702820,1726887049547,-500.0,0.00014481,2]
[338702821,1726887049556,-500.0,0.00014481,2]
[338702822,1726887049565,-500.0,0.00014481,2]
[338702823,1726887049575,-500.0,0.00014481,2]
[338702824,1726887049584,-200.0,0.00014481,2]
[338702825,1726887049593,-500.0,0.00014481,2]
[338702826,1726887049603,-625.64,0.00014481,2]
[338702827,1726887049612,-500.0,0.00014481,2]
[338702828,1726887049621,-500.0,0.00014481,2]
[338702829,1726887049630,-500.0,0.00014481,2]
[338702830,1726887049639,-500.0,0.00014481,2]
[338702831,1726887049649,-500.0,0.00014481,2]
[338702832,1726887049659,-500.0,0.00014481,2]
[338702833,1726887049669,-500.0,0.00014481,2]
[338702834,1726887049679,-500.0,0.00014481,2]
[338702835,1726887049688,-500.0,0.00014481,2]
[338702836,1726887049891,-324.36611061,0.00014481,2]
[338702837,1726887049903,-560.1,0.00014481,2]
[338702838,1726887049913,-500.0,0.00014481,2]
[338702839,1726887049922,-613.25,0.00014481,2]
[338702840,1726887049933,-500.0,0.00014481,2]
[338702841,1726887049942,-634.69,0.00014481,2]
[338702842,1726887049952,-642.55,0.00014481,2]
[338702843,1726887049961,-500.0,0.00014481,2]
[338702844,1726887049971,-500.0,0.00014481,2]
[338702845,1726887049981,-575.03,0.00014481,2]
[338702846,1726887049990,-500.0,0.00014481,2]
[338702847,1726887050000,-177.94297017,0.00014481,2]
[338702848,1726887050011,-500.0,0.00014481,2]
[338702849,1726887050022,-500.0,0.00014481,2]
[338702850,1726887050034,-500.0,0.00014481,2]
[338702851,1726887050045,-500.0,0.00014481,2]
[338702852,1726887050055,-500.0,0.00014481,2]
[338702853,1726887050064,-500.0,0.00014481,2]
[338702854,1726887050074,-481.019684,0.00014481,2]
[338702855,1726887050083,-1030.951639,0.00014481,2]
[338702856,1726887050092,-500.0,0.00014481,2]
[338702857,1726887050103,-481.019684,0.00014481,2]
[338702858,1726887050112,-500.0,0.00014481,2]
[338702859,1726887050121,-1030.951639,0.00014481,2]
[338702860,1726887050131,-835.9,0.00014481,2]
[338702861,1726887050140,-500.0,0.00014481,2]
[338702862,1726887050149,-330.86102192,0.00014481,2]
[338702863,1726887050158,-500.0,0.00014481,2]
[338702864,1726887050167,-266.80906909,0.00014481,2]
[338702865,1726887050177,-500.0,0.00014481,2]
[338702866,1726887050186,-500.0,0.00014481,2]
[338702867,1726887050195,-500.0,0.00014481,2]
[338702868,1726887050204,-500.0,0.00014481,2]
[338702869,1726887050213,-500.0,0.00014481,2]
[338702870,1726887050222,-450.527493,0.00014481,2]
[338702871,1726887050231,-500.0,0.00014481,2]
[338702872,1726887050240,-450.527493,0.00014481,2]
[338702873,1726887050251,-1549.57690727,0.00014481,2]
[338702874,1726887050382,-272.37209213,0.00014196,2]
[338702875,1726887050397,-227.62790787,0.00014196,2]
[338702876,1726887050408,-55.65729212,0.00014205,2]
[338702879,1726887177821,266.774811,0.00013699,2]
[338702880,1726887209354,450.953264,0.00011781,2]
[338702885,1726887727316,150.37581723,0.00014026,2]
[338702886,1726887748640,177.849874,0.00013699,2]
[338702887,1726887790242,448.482199,0.00011781,2]
[338702892,1726888028753,10000.0,0.0001404,2]
[338702896,1726888059226,7096.33,0.0001404,2]
[338702956,1726888238269,-1000.0,0.00014086,2]
[338702957,1726888238279,-300.0,0.00014122,2]
[338702958,1726888238288,-300.0,0.00014122,2]
[338702959,1726888238297,-7140.47594759,0.00014153,2]
[338702960,1726888238307,-224522.783899,0.00014166,2]
[338702961,1726888238316,-500.0,0.00014169,2]
[338702962,1726888238326,-500.0,0.00014169,2]
[338702963,1726888238335,-500.0,0.00014169,2]
[338702964,1726888238344,-500.0,0.00014169,2]
[338702965,1726888238354,-500.0,0.00014169,2]
[338702966,1726888238363,-265.49428892,0.00014169,2]
[338702967,1726888238375,-500.0,0.00014169,2]
[338702968,1726888238386,-500.0,0.00014169,2]
[338702969,1726888238395,-500.0,0.00014169,2]
[338702970,1726888238404,-500.0,0.00014169,2]
[338702971,1726888238414,-500.0,0.00014169,2]
[338702972,1726888238423,-500.0,0.00014169,2]
[338702973,1726888238433,-500.0,0.00014169,2]
[338702974,1726888238442,-317.90964862,0.00014169,2]
[338702975,1726888238451,-314.88730475,0.00014169,2]
[338702976,1726888238460,-500.0,0.00014169,2]
[338702977,1726888238470,-500.0,0.00014169,2]
[338702978,1726888238479,-500.0,0.00014169,2]
[338702979,1726888238488,-500.0,0.00014169,2]
[338702980,1726888238498,-500.0,0.00014169,2]
[338702981,1726888238508,-603.01103973,0.00014169,2]
[338702982,1726888238518,-500.0,0.00014169,2]
[338702983,1726888238528,-43897.7465586,0.0001417,2]
[338702984,1726888238539,-63536.16293826,0.0001417,2]
[338702985,1726888238551,-25230.98916868,0.0001417,2]
[338703007,1726888239929,-500.0,0.00014165,2]
[338703009,1726888239938,-3347.71910499,0.0001417,2]
[338703011,1726888239950,-46279.30857665,0.0001417,2]
[338703029,1726888240111,-11287.67614442,0.0001417,2]
[338703031,1726888240120,-500.0,0.00014174,2]
[338703033,1726888240129,-318.26482227,0.00014174,2]
[338703035,1726888240139,-500.0,0.00014174,2]
[338703037,1726888240148,-500.0,0.00014174,2]
[338703039,1726888240157,-550.82544003,0.00014174,2]
[338703041,1726888240172,-425.79434556,0.00014174,2]
[338703043,1726888240182,-500.0,0.00014174,2]
[338703045,1726888240191,-500.0,0.00014174,2]
[338703046,1726888240200,-500.0,0.00014174,2]
[338703049,1726888240209,-500.0,0.00014174,2]
[338703051,1726888240218,-575.40562782,0.00014174,2]
[338703053,1726888240228,-500.0,0.00014174,2]
[338703054,1726888240237,-500.0,0.00014174,2]
[338703056,1726888240246,-500.0,0.00014174,2]
[338703058,1726888240255,-43897.7465586,0.00014175,2]
[338703060,1726888240264,-157.23771833,0.00014175,2]
[338703062,1726888240274,-131693.239676,0.00014176,2]
[338703064,1726888240283,-500.0,0.00014179,2]
[338703066,1726888240292,-1249.19,0.00014179,2]
[338703068,1726888240301,-645.76,0.00014179,2]
[338703070,1726888240311,-500.0,0.00014179,2]
[338703072,1726888240320,-744.8,0.00014179,2]
[338703074,1726888240330,-507.09795594,0.00014179,2]
[338703076,1726888240339,-500.0,0.00014179,2]
[338703078,1726888240348,-500.0,0.00014179,2]
[338703080,1726888240357,-19197.49,0.00014179,2]
[338703082,1726888240366,-3128.96,0.00014179,2]
[338703084,1726888240379,-501.25568566,0.0001418,2]
[338703086,1726888240388,-500.0,0.0001418,2]
[338703088,1726888240397,-500.0,0.0001418,2]
[338703090,1726888240407,-500.0,0.0001418,2]
[338703092,1726888240419,-500.0,0.0001418,2]
[338703094,1726888240429,-500.0,0.0001418,2]
[338703096,1726888240438,-402.61811148,0.0001418,2]
[338703098,1726888240448,-501.77821498,0.0001418,2]
[338703100,1726888240457,-501.01295362,0.0001418,2]
[338703102,1726888240467,-619.18,0.0001418,2]
[338703104,1726888240477,-500.0,0.0001418,2]
[338703106,1726888240486,-615.52801523,0.0001418,2]
[338703108,1726888240496,-500.0,0.0001418,2]
[338703110,1726888240505,-500.0,0.0001418,2]
[338703112,1726888240514,-500.0,0.0001418,2]
[338703114,1726888240524,-501.91226776,0.0001418,2]
[338703116,1726888240534,-500.0,0.0001418,2]
[338703118,1726888240543,-500.0,0.0001418,2]
[338703120,1726888240553,-500.0,0.0001418,2]
[338703122,1726888240562,-500.0,0.0001418,2]
[338703124,1726888240571,-500.0,0.0001418,2]
[338703126,1726888240581,-501.12630392,0.0001418,2]
[338703128,1726888240590,-500.98635114,0.0001418,2]
[338703130,1726888240599,-737.12,0.0001418,2]
[338703132,1726888240609,-500.0,0.0001418,2]
[338703134,1726888240618,-501.15088425,0.0001418,2]
[338703136,1726888240627,-503.08688599,0.0001418,2]
[338703138,1726888240636,-500.0,0.0001418,2]
[338703140,1726888240645,-502.31986415,0.0001418,2]
[338703142,1726888240654,-500.0,0.0001418,2]
[338703144,1726888240664,-500.0,0.0001418,2]
[338703146,1726888240673,-500.0,0.0001418,2]
[338703148,1726888240683,-911.99,0.0001418,2]
[338703150,1726888240694,-500.0,0.0001418,2]
[338703152,1726888240703,-500.0,0.0001418,2]
[338703154,1726888240713,-500.0,0.0001418,2]
[338703155,1726888240722,-500.0,0.0001418,2]
[338703157,1726888240731,-500.0,0.0001418,2]
[338703159,1726888240740,-500.0,0.0001418,2]
[338703161,1726888240750,-500.0,0.0001418,2]
[338703163,1726888240759,-500.0,0.0001418,2]
[338703165,1726888240768,-500.0,0.0001418,2]
[338703167,1726888240778,-500.0,0.0001418,2]
[338703168,1726888240787,-500.0,0.0001418,2]
[338703170,1726888240796,-500.0,0.0001418,2]
[338703172,1726888240805,-503.97102658,0.0001418,2]
[338703174,1726888240815,-500.0,0.0001418,2]
[338703176,1726888240824,-503.31174505,0.0001418,2]
[338703178,1726888240833,-500.0,0.0001418,2]
[338703180,1726888240843,-500.0,0.0001418,2]
[338703182,1726888240852,-500.58502753,0.0001418,2]
[338703184,1726888240861,-500.0,0.0001418,2]
[338703186,1726888240870,-500.0,0.0001418,2]
[338703188,1726888240880,-500.0,0.0001418,2]
[338703190,1726888240890,-500.0,0.0001418,2]
[338703192,1726888240899,-500.0,0.0001418,2]
[338703194,1726888240908,-500.0,0.0001418,2]
[338703196,1726888240917,-418.69,0.0001418,2]
[338703197,1726888240926,-579.96068453,0.0001418,2]
[338703199,1726888240936,-500.0,0.0001418,2]
[338703201,1726888240945,-500.0,0.0001418,2]
[338703203,1726888240954,-502.16199467,0.0001418,2]
[338703205,1726888240963,-500.0,0.0001418,2]
[338703207,1726888240972,-402.16,0.0001418,2]
[338703209,1726888240981,-500.0,0.0001418,2]
[338703211,1726888240990,-500.0,0.0001418,2]
[338703212,1726888240999,-500.0,0.0001418,2]
[338703214,1726888241008,-500.0,0.0001418,2]
[338703216,1726888241018,-580.82,0.0001418,2]
[338703218,1726888241028,-500.0,0.0001418,2]
[338703220,1726888241037,-500.0,0.0001418,2]
[338703222,1726888241046,-500.0,0.0001418,2]
[338703224,1726888241056,-500.0,0.0001418,2]
[338703226,1726888241065,-500.0,0.0001418,2]
[338703228,1726888241075,-500.0,0.0001418,2]
[338703230,1726888241084,-500.0,0.0001418,2]
[338703232,1726888241093,-500.0,0.0001418,2]
[338703234,1726888241103,-500.0,0.0001418,2]
[338703236,1726888241112,-500.0,0.0001418,2]
[338703238,1726888241122,-500.0,0.0001418,2]
[338703240,1726888241131,-500.0,0.0001418,2]
[338703242,1726888241141,-501.10524683,0.0001418,2]
[338703244,1726888241150,-500.0,0.0001418,2]
[338703246,1726888241159,-502.01356301,0.0001418,2]
[338703248,1726888241170,-500.0,0.0001418,2]
[338703250,1726888241179,-500.0,0.0001418,2]
[338703252,1726888241189,-500.0,0.0001418,2]
[338703254,1726888241198,-500.0,0.0001418,2]
[338703256,1726888241207,-500.0,0.0001418,2]
[338703257,1726888241216,-500.0,0.0001418,2]
[338703260,1726888241226,-500.0,0.0001418,2]
[338703261,1726888241235,-501.7270729,0.0001418,2]
[338703264,1726888241246,-500.0,0.0001418,2]
[338703266,1726888241257,-500.0,0.0001418,2]
[338703268,1726888241266,-500.0,0.0001418,2]
[338703270,1726888241277,-464.16896221,0.0001418,2]
[338703272,1726888241287,-500.0,0.0001418,2]
[338703274,1726888241297,-500.0,0.0001418,2]
[338703276,1726888241308,-500.0,0.0001418,2]
[338703278,1726888241320,-500.0,0.0001418,2]
[338703280,1726888241329,-500.0,0.0001418,2]
[338703282,1726888241340,-500.0,0.0001418,2]
[338703284,1726888241350,-247.00020312,0.0001418,2]
[338703286,1726888241360,-500.82383129,0.0001418,2]
[338703288,1726888241371,-500.0,0.0001418,2]
[338703290,1726888241384,-502.54875055,0.0001418,2]
[338703292,1726888241396,-500.0,0.0001418,2]
[338703294,1726888241407,-500.0,0.0001418,2]
[338703296,1726888241417,-500.0,0.0001418,2]
[338703298,1726888241427,-310.87690465,0.0001418,2]
[338703300,1726888241436,-500.0,0.0001418,2]
[338703302,1726888241445,-500.0,0.0001418,2]
[338703304,1726888241455,-446.05029954,0.0001418,2]
[338703306,1726888241464,-500.0,0.0001418,2]
[338703308,1726888241473,-576.67311656,0.0001418,2]
[338703310,1726888241482,-500.0,0.0001418,2]
[338703312,1726888241493,-500.0,0.0001418,2]
[338703314,1726888241502,-500.0,0.0001418,2]
[338703316,1726888241510,-500.0,0.0001418,2]
[338703318,1726888241519,-500.0,0.0001418,2]
[338703320,1726888241529,-500.0,0.0001418,2]
[338703322,1726888241538,-511.23388861,0.0001418,2]
[338703324,1726888241547,-500.0,0.0001418,2]
[338703326,1726888241557,-500.0,0.0001418,2]
[338703328,1726888241566,-511.59615971,0.0001418,2]
[338703330,1726888241575,-502.57620375,0.0001418,2]
[338703332,1726888241585,-632.95,0.0001418,2]
[338703334,1726888241594,-500.0,0.0001418,2]
[338703336,1726888241603,-500.0,0.0001418,2]
[338703337,1726888241612,-500.0,0.0001418,2]
[338703339,1726888241623,-500.0,0.0001418,2]
[338703341,1726888241632,-500.0,0.0001418,2]
[338703344,1726888241643,-500.0,0.0001418,2]
[338703346,1726888241653,-500.0,0.0001418,2]
[338703348,1726888241663,-500.0,0.0001418,2]
[338703350,1726888241672,-500.0,0.0001418,2]
[338703352,1726888241682,-503.18421156,0.0001418,2]
[338703354,1726888241693,-500.0,0.0001418,2]
[338703356,1726888241703,-500.0,0.0001418,2]
[338703358,1726888241713,-500.0,0.0001418,2]
[338703360,1726888241723,-500.0,0.0001418,2]
[338703362,1726888241732,-500.0,0.0001418,2]
[338703364,1726888241744,-500.0,0.0001418,2]
[338703366,1726888241754,-500.0,0.0001418,2]
[338703368,1726888241765,-500.0,0.0001418,2]
[338703370,1726888241775,-503.45060925,0.0001418,2]
[338703372,1726888241785,-500.0,0.0001418,2]
[338703374,1726888241797,-500.0,0.0001418,2]
[338703376,1726888241808,-180.4,0.0001418,2]
[338703379,1726888241818,-500.0,0.0001418,2]
[338703380,1726888241828,-500.0,0.0001418,2]
[338703382,1726888241838,-500.0,0.0001418,2]
[338703384,1726888241847,-535.96,0.0001418,2]
[338703386,1726888241857,-500.0,0.0001418,2]
[338703388,1726888241866,-500.0,0.0001418,2]
[338703390,1726888241876,-500.0,0.0001418,2]
[338703392,1726888241886,-500.0,0.0001418,2]
[338703394,1726888241899,-211.36453597,0.0001418,2]
[338703396,1726888241909,-500.0,0.0001418,2]
[338703398,1726888241918,-500.0,0.0001418,2]
[338703400,1726888241928,-500.0,0.0001418,2]
[338703402,1726888241937,-500.0,0.0001418,2]
[338703404,1726888241947,-287.96362798,0.0001418,2]
[338703405,1726888241956,-903.14,0.0001418,2]
[338703407,1726888241966,-500.0,0.0001418,2]
[338703409,1726888241976,-500.0,0.0001418,2]
[338703411,1726888241986,-500.0,0.0001418,2]
[338703413,1726888241995,-500.0,0.0001418,2]
[338703415,1726888242005,-500.0,0.0001418,2]
[338703417,1726888242014,-500.0,0.0001418,2]
[338703419,1726888242024,-500.0,0.0001418,2]
[338703421,1726888242034,-500.0,0.0001418,2]
[338703423,1726888242043,-500.0,0.0001418,2]
[338703425,1726888242053,-1191.91,0.0001418,2]
[338703427,1726888242063,-500.0,0.0001418,2]
[338703429,1726888242073,-500.0,0.0001418,2]
[338703430,1726888242083,-500.0,0.0001418,2]
[338703448,1726888242250,-500.0,0.0001418,2]
[338703450,1726888242260,-500.0,0.0001418,2]